Cogmind - Beta 10.2 @@@ ROGUE MODE // 2020.12.25 @ 20:17:29 Player: CrossedViper Result: Destroyed by DAS Turret with DAS Cannon Performance ------------- Evolutions (0) 0 Regions Visited (3) 600 Robots Destroyed (17) 85 Value Destroyed (197) 197 Prototype IDs (24) 480 Alien Tech Used (0) 0 Bonus (18) 18 TOTAL SCORE: 1380 Bonus ------- Follower Combat Kills 7 Aligned with FarCom 300 Friendly Fire -289 Cogmind --------- Core Integrity 0/250 Matter 256/300 Energy 135/200 System Corruption 0% Temperature Cool (1) Movement Walking (150) Ox1 Location -10/Exiles Parts ------- > --- POWER (1) -------- Cold Fusion Reactor > --- PROPULSION (2) --- Carbon-fiber Leg > --- UTILITY (2) ------ Large Storage Unit > --- WEAPON (2) ------- Assault Rifle > --- INVENTORY (10) --- Light Ion Engine Advanced Signal Interpreter Melee Analysis Suite Katana Peak State ------------ > --- POWER ------------ Cold Fusion Reactor > --- PROPULSION ------- Carbon-fiber Leg > --- UTILITY ---------- Large Storage Unit > --- WEAPON ----------- Assault Rifle > --- INVENTORY -------- Light Ion Engine Advanced Signal Interpreter Melee Analysis Suite Katana [Rating: 12] Favorites ----------- Power Light Ion Engine Engine Light Ion Engine Reactor Cold Fusion Reactor Propulsion Aluminum Leg Treads Light Treads Leg Aluminum Leg Utility Large Storage Unit Storage Large Storage Unit Weapon Assault Rifle Energy Gun Medium Laser Ballistic Gun Assault Rifle Build | -11 -10 -10 -10 ------- Run | Scr Mat Min Exi Slots Evolved . | . . . . Power . | . . . . Propulsion . | . . . . Utility . | . . . . Weapon . | . . . . Parts Attached 16 | . 4 7 5 Power 3 | . . 2 1 Engine 2 | . . 2 . Core . | . . . . Reactor 1 | . . . 1 Propulsion 5 | . 2 2 1 Treads 2 | . . 2 . Leg 3 | . 2 . 1 Wheel . | . . . . Hover . | . . . . Flight . | . . . . Utility 1 | . 1 . . Device . | . . . . Storage 1 | . 1 . . Processor . | . . . . Hackware . | . . . . Protection . | . . . . Artifact . | . . . . Weapon 7 | . 1 3 3 Energy Gun 2 | . 1 1 . Energy Cannon . | . . . . Ballistic Gun 5 | . . 2 3 Ballistic Cannon . | . . . . Launcher . | . . . . Special Weapon . | . . . . Impact Weapon . | . . . . Slashing Weapon . | . . . . Piercing Weapon . | . . . . Special Melee Weapon . | . . . . Unidentified Prototypes 1 | . . . 1 Parts Lost 10 | . 1 3 6 Power 1 | . . . 1 Propulsion 2 | . . . 2 Utility . | . . . . Weapon 7 | . 1 3 3 Highest Loss Streak 6 | . 1 1 6 Average Slot Usage (%) 97 | . 99 97 96 Engine 13 | . 14 14 13 Treads 12 | . . 6 27 Leg 14 | . 28 21 . Storage 26 | . 27 28 25 Energy Gun 10 | . 27 11 . Ballistic Gun 16 | . . 14 28 Naked Turns . | . . . . Heaviest Build 30 | 12 29 29 30 Greatest Support 40 | 20 20 40 40 Greatest Overweight (x) 1 | . 1 1 1 Average Overweight (x) . | . . . . Largest Inventory Capacity 12 | . 12 12 12 Average Capacity 11 | . 11 12 11 Most Carried 12 | . 12 12 12 Average Carried 11 | . 10 11 11 Final Capacity 12 | 6 12 12 10 Final Carried 12 | 6 12 12 4 Class Distribution -------------------- 100% | Mutant Dominant Class ---------------- Mutant | -10/Materials Mutant | -10/Mines Mutant | -10/Exiles Resources | -11 -10 -10 -10 ----------- Run | Scr Mat Min Exi Matter Collected 362 | 200 15 117 30 Remotely . | . . . . Salvage Created 357 | . 81 276 . Parts 37 | . 13 24 . Haulers Intercepted . | . . . . Recyclers Shooed . | . . . . Parts Field Recycled . | . . . . Retrieved Matter . | . . . . Parts Self-Destructed . | . . . . Prevented . | . . . . Kills | -11 -10 -10 -10 ------- Run | Scr Mat Min Exi Combat Hostiles Destroyed 14 | . 3 11 . Guns 12 | . 3 9 . AOE 2 | . . 2 . Classes Destroyed 4 | . 2 2 . Tunneler 1 | . . 1 . Watcher 1 | . 1 . . Swarmer 13 | . 3 10 . Grunt 1 | . . 1 . Thug 1 | . . 1 . Best Kill Streak 4 | . 4 3 . Combat Bots Only 3 | . 3 3 . Max Kills in Single Turn 2 | . 2 2 . Gunslinging 1 | . . 1 . Exploded 2 | . . 2 . Melee . | . . . . Uniques/NPCs Destroyed . | . . . . Combat | -11 -10 -10 -10 -------- Run | Scr Mat Min Exi Damage Taken 1416 | . 198 481 737 Core 271 | . 26 112 133 Absorbed by Shields . | . . . . Core Remaining (%) 100 | 100 . . . Volleys Fired 48 | . 13 34 1 Largest 2 | . 2 2 2 Hottest 100 | . 80 100 40 Shots Fired 85 | . 23 60 2 Gun 85 | . 23 60 2 Cannon . | . . . . Launcher . | . . . . Special . | . . . . Kinetic 27 | . . 25 2 Thermal 35 | . 10 25 . Explosive . | . . . . Electromagnetic 23 | . 13 10 . Robot Hit Streak 4 | . 4 4 1 Robot Miss Streak 5 | . 3 5 1 Penetration Max . | . . . . Secondary Targets 1 | . . 1 . Max Gunslinging Chain 1 | . . 1 . Shots Hit Robots 39 | . 10 28 1 Core Hits 20 | . 4 16 . Critical Hits . | . . . . Critical Kills . | . . . . Critical Parts Destroyed . | . . . . Melee Attacks . | . . . . Impact . | . . . . Slashing . | . . . . Piercing . | . . . . Sneak Attacks . | . . . . Combat Hostiles . | . . . . Follow-up Attacks . | . . . . Damage Inflicted 603 | . 136 455 12 Guns 499 | . 136 351 12 Cannons . | . . . . Explosions 104 | . . 104 . Melee . | . . . . Ramming . | . . . . Kinetic 177 | . . 165 12 Thermal 245 | . 56 189 . Explosive . | . . . . Electromagnetic 181 | . 80 101 . Impact . | . . . . Slashing . | . . . . Piercing . | . . . . Highest Corruption . | . . . . Average Corruption . | . . . . Corruption Purged . | . . . . Overload Shots . | . . . . Overflow Damage 30 | . . 30 . Projectiles . | . . . . Explosions 30 | . . 30 . Melee . | . . . . Knockbacks . | . . . . Impact . | . . . . Kinetic . | . . . . Secondary . | . . . . Self-Inflicted Damage 47 | . . 47 . Shots 1 | . . 1 . Rammed . | . . . . Targets Rammed . | . . . . Kicked . | . . . . Crushed . | . . . . Highest Temperature 273 | . 180 273 . Average Temperature 96 | . 103 91 . Received Heat Transfer 24 | . . 24 . Siege Activations . | . . . . Robots Corrupted . | . . . . Combat Hostiles . | . . . . Parts Fried 1 | . . 1 . Impact Corruptions . | . . . . Robots Melted . | . . . . Combat Hostiles . | . . . . Parts Melted 1 | . . 1 . Heat Transferred 534 | . 125 409 . Parts Sabotaged . | . . . . Parts Stolen . | . . . . Parts Stripped . | . . . . Power Chain Reactions 2 | . . 2 . Missiles Intercepted . | . . . . Alert | -11 -10 -10 -10 ------- Run | Scr Mat Min Exi Peak Influence 242 | . 152 242 . Initial 58 | . . 58 . Average 93 | . 75 99 . Maximum Alert Level 1 | . . 1 . Low Security (%) 96 | . 100 94 . Level 1 3 | . . 5 . Level 2 . | . . . . Level 3 . | . . . . Level 4 . | . . . . Level 5 . | . . . . High Security . | . . . . Max Security . | . . . . Squads Dispatched 2 | . 1 1 . Investigation 2 | . 1 1 . Extermination . | . . . . Reinforcement . | . . . . Assault . | . . . . Garrison . | . . . . Intercept . | . . . . Construction Impeded . | . . . . Haulers Reinforced . | . . . . Stealth | -11 -10 -10 -10 --------- Run | Scr Mat Min Exi Distress Signals . | . . . . Communications Jammed . | . . . . Distress Signals . | . . . . Times Spotted 48 | . 7 13 28 Peak Tracking Total 12 | . 5 3 12 Tactical Retreats 2 | . . . 2 Traps | -11 -10 -10 -10 ------- Run | Scr Mat Min Exi Traps Triggered . | . . . . Indirectly . | . . . . Trap Hack Attempts . | . . . . Triggered . | . . . . Disarmed . | . . . . Reprogrammed . | . . . . Reused . | . . . . Traps Extracted . | . . . . Installed . | . . . . Triggered . | . . . . Machines | -11 -10 -10 -10 ---------- Run | Scr Mat Min Exi Machines Disabled 2 | . 1 . 1 Max in Single Turn 1 | . 1 . . Machines Sabotaged . | . . . . Garrisons Compromised . | . . . . Overloaded Fab Kills . | . . . . Fab Network Shutdowns . | . . . . Hacking | -11 -10 -10 -10 --------- Run | Scr Mat Min Exi Machines Accessed 7 | . 4 1 2 Terminals 3 | . 3 . . Fabricators . | . . . . Repair Stations . | . . . . Recycling Units 1 | . 1 . . Scanalyzers . | . . . . Garrison Access . | . . . . Total Hacks 15 | . 12 1 2 Successful 7 | . 4 1 2 Failed 8 | . 8 . . Catastrophic . | . . . . Database Lockouts . | . . . . Manual 13 | . 12 . 1 Terminals 11 | . 11 . . Fabricators . | . . . . Repair Stations . | . . . . Recycling Units 1 | . 1 . . Scanalyzers . | . . . . Garrison Access . | . . . . Terminal Hacks 4 | . 1 1 2 Record 1 | . . . 1 Open Door 1 | . . 1 . Branch Access Points 1 | . 1 . . EX-Prototype ID Bank 1 | . . . 1 Fabricator Hacks . | . . . . Repair Station Hacks . | . . . . Recycling Unit Hacks . | . . . . Scanalyzer . | . . . . Garrison Access Hacks . | . . . . Unauthorized Hacks 3 | . 3 . . Terminals 2 | . 2 . . Assimilate 1 | . 1 . . Botnet 1 | . 1 . . Fabricators . | . . . . Repair Stations . | . . . . Recycling Units 1 | . 1 . . Tunnel 1 | . 1 . . Scanalyzers . | . . . . Garrison Access . | . . . . Data Cores Recovered . | . . . . Used . | . . . . Hacking Detections 3 | . 3 . . Full Trace Events . | . . . . Feedback Events . | . . . . Feedback Blocked . | . . . . Robot Schematics Acquired . | . . . . Robots Built . | . . . . Matter . | . . . . Time . | . . . . Total Robot Build Rating . | . . . . Part Schematics Acquired . | . . . . Parts Built . | . . . . Matter . | . . . . Time . | . . . . Total Part Build Rating . | . . . . Parts Repaired . | . . . . Time . | . . . . Parts Recycled . | . . . . Recycled Matter . | . . . . Retrieved Matter . | . . . . Retrieved Components . | . . . . Parts Scanalyzed . | . . . . Part Schematics Acquired . | . . . . Parts Damaged . | . . . . Bothacking | -11 -10 -10 -10 ------------ Run | Scr Mat Min Exi Used RIF Installer . | . . . . Robots Hacked . | . . . . Non-combat . | . . . . Combat . | . . . . Robot Hacks Applied . | . . . . Relay Couplers Released . | . . . . Robots Rewired . | . . . . Allies Hacked . | . . . . Hacks Repelled . | . . . . Allies | -11 -10 -10 -10 -------- Run | Scr Mat Min Exi Total Allies 2 | . 1 1 . Largest Group 2 | . 1 2 . Highest-Rated Group 41 | . 10 41 . Highest-Rated Ally 31 | . 10 31 . Total Orders . | . . . . Ally Attacks 23 | . . 4 19 Total Damage 873 | . . 81 792 Kills 5 | . . 1 4 Allies Corrupted . | . . . . Allies Melted . | . . . . Turrets Deployed 3 | . . . 3 Intel | -11 -10 -10 -10 ------- Run | Scr Mat Min Exi Robot Analysis Total . | . . . . Derelict Logs Recovered 1 | . . 1 . Drone Launches . | . . . . Drone Recoveries . | . . . . Exploration | -11 -10 -10 -10 ------------- Run | Scr Mat Min Exi Turns Passed 1863 | . 322 877 664 Spaces Moved 1088 | 1 183 503 401 Core . | . . . . Treads 514 | . . 115 399 Legs 574 | 1 183 388 2 Wheels . | . . . . Hover . | . . . . Flight . | . . . . Fastest Speed 120 | 120 120 150 150 Average Speed 154 | 120 148 152 159 Slowest Speed 160 | 120 150 160 160 Overloaded Moves . | . . . . Propulsion Burnouts . | . . . . Robots Hopped . | . . . . Cave-ins Triggered . | . . . . Exploration Rate (%) 50 | 2 39 94 66 Regions Visited 3 Branch Regions 2 Pre-discovered Areas 3 | . 1 1 1 Known Exits Taken 1 | . 1 . . Unknown Exits Taken 2 | 1 . 1 . Scrap Searched 2 | . . 2 . Spaces Dug . | . . . . Terrain Destroyed 9 | . . 9 . Melee . | . . . . Projectile . | . . . . AOE 9 | . . 9 . Terrain Rammed . | . . . . Walls Destroyed . | . . . . Machines Disabled . | . . . . Actions | -11 -10 -10 -10 --------- Run | Scr Mat Min Exi Total 1197 | . 212 557 428 Wait 3 | . . 2 1 Move 1085 | . 182 502 401 Hop . | . . . . Pick Up 23 | . 9 7 7 Fast Attach 2 | . 1 . 1 Attach 9 | . 1 5 3 Detach . | . . . . Swap 5 | . 2 2 1 Drop 22 | . 4 5 13 Fire 48 | . 13 34 1 Melee . | . . . . Ram . | . . . . Kick . | . . . . Crush . | . . . . Escape Stasis . | . . . . Rewire . | . . . . Trap . | . . . . Miscellaneous . | . . . . Route ------- -11/Scrapyard -10/Materials (discovered 2 exits: *Min x2) -10/Mines (discovered 3 exits: [*Mat x2] / *Exi) -10/Exiles History --------- Turn | Location | Event 1 | -11/Scrapyard | Discovered new exit (range 0) 1 | -11/Scrapyard | Entered Materials 195 | -10/Materials | Identified exit to Mines 304 | -10/Materials | Build established: Mutant 323 | -10/Materials | Entered Mines 323 | -10/Mines | Accompanied by 1 ally 326 | -10/Mines | Received a Mining Laser from a helpful Derelict 364 | -10/Mines | Learned location of Mines (-9) 515 | -10/Mines | Discovered new exit (range 11) 738 | -10/Mines | Discovered new exit (range 13) 857 | -10/Mines | Core integrity fell below 50% 987 | -10/Mines | Met a Derelict shopkeep closing up shop 1194 | -10/Mines | Deemed a non-threat by the Exiles lab entrance 1194 | -10/Mines | Discovered new exit (range 5) 1200 | -10/Mines | Entered Exiles 1274 | -10/Exiles | Met 8R-AWN 1298 | -10/Exiles | Met EX-HEX 1475 | -10/Exiles | Met EX-DEC 1635 | -10/Exiles | Learned location of Zion (-6) 1662 | -10/Exiles | Met EX-BIN 1685 | -10/Exiles | Aligned with FarCom system 1686 | -10/Exiles | Given EX-Vault access code 1725 | -10/Exiles | Opened EX-Vault 1742 | -10/Exiles | Found Deploy-a-Sentry 1745 | -10/Exiles | Found Deploy-a-Sentry 1747 | -10/Exiles | Found Deploy-a-Sentry 1784 | -10/Exiles | Warned to stay clear of 0b10 Research branches 1797 | -10/Exiles | Exiles lab attacked by MAIN.C 1840 | -10/Exiles | DAS Turret deployed 1842 | -10/Exiles | Attacked by the Exiles 1845 | -10/Exiles | DAS Turret deployed 1847 | -10/Exiles | DAS Turret deployed 1863 | -10/Exiles | Core integrity fell below 20% 1864 | -10/Exiles | Destroyed by DAS Turret with DAS Cannon Last Messages --------------- 01856_ as-01926 knocked back. 01856_ as-00165 destroyed. 01857_ Acquired Prototype Reactor. 01857_ Identified Cold Fusion Reactor. 01858_ HV Slug penetrates as-85959. 01858_ Penetrated by HV Slug. 01858_ Destroyed Asb. Hover Unit. 01858_ as-01926 knocked back. 01860_ Penetrated by HV Slug. 01860_ Assault Rifle destroyed. 01860_ Penetrated by HV Slug. 01860_ Lgt. Treads destroyed. 01860_ Assault Rifle destroyed. 01860_ Knocked back. 01860_ Destroyed Asb. Hover Unit. 01860_ Destroyed Asb. Blade. 01860_ as-85959 destroyed. 01862_ DAS Turret destroyed. 01863_ HV Slug penetrates Machine. 01863_ Penetrated by HV Slug. Map ----- +----------------------------------------------------+ | ???????????????????????????????# #?#"""""""#?? | | ??????????????????????????????## ###"" """"#?? | | #####?????????????????????????#" """"#?? | | !! "#?????????????????????????#" """#?? | | "#?????????????????????????#" """#?? | | "#?????????????????????????#" """#?? | | ""#????????????#####????????#" """#?? | | ""#???????????? """#???????#" """#?? | | ""????????????"" """#???????## """"?? | | #????????????#"" #????????# """#?? | | #????????????#"" #????????#" "X" """"?? | | ##???????????#"" "#????????#" """ #?? | | "#???????????? ""?????????#" """""""""#?? | | ###???????????" "?????????##" ###########?? | | ##??????????# #????????##"" #???????????? | | " ######???### ###?######"" #???????????? | | " """#####X# #"###""""""" ##??????????? | | " """""" " "" ##???####### | | "# "" """ " #####"""""" | | ### " """ | | ??### "" | | ????### t " | | ??????## t | | ???????## !% | | ????????## !!!= % % | | ?????????#""" !!@!! g""" | | ????????##" !!!!!######""" % | | ????????# !""##????#####"""a | | ????????# """##?????????##""" | | ???????#"" """##???????????#"""" | | ????????" ""#????????????#"" | | ???????#"" ########???###"""" | | ???????#""" ## ####""" | | ???????#"" """" | | ????????#"" | | ????????#"""" | | ?????????# " | | ?????????#" " "" """ | | ?????????#"""" ""## ##""" " " ""#" | | ?????????#"" ""#### #??###""" ""?## | | ??????????? """"##??# #???????""????# | | ??????????""" """#???# #?????????????? | | ??????????? ""##???! ?????????????? | | ???????????"" """#????#" ????????????? | | ?????????????"" #?????#" ????????????? | | ???????????????"" #??????#!!""!"???????????? | | ????????????????? ????????########??????????? | | ???????????????????? ??????????????????????????? | | ?????????????????????????????????????????????????? | | ?????????????????????????????????????????????????? | +----------------------------------------------------+ Best States ------------- Heat Dissipation 25 Energy Generation 17 Energy Capacity 250 Matter Stores 300 Matter Capacity 300 Sight Range 16 Terrain Scan Density 10 Evasion (%) 40 Recoil Reduction 2 Item Schematics ----------------- None Robot Schematics ------------------ None Fabricated ------------ Nothing Alien Tech Used ----------------- None Achievements -------------- None Challenges ------------ None Game ------ Seed FlyingBiomechanicalWings Manual? 0 Play Time 00:12:48 Cumulative 187.0 hours Start 2020.12.25 @ 19:06:25 End 2020.12.25 @ 20:17:29 Sessions 4 Manual Loads 0 Difficulty Rogue Special Mode None Game No. 180 Rogue 173 Adventurer 0 Explorer 7 Win Type - Total 4 Types 0/0/4/0/0/0/0/0/0 Lore% 64 Gallery% 89 Achievement% 66 Wizard Run 0 Options --------- ASCII 0 Keyboard 0 Movement Numpad Keybinds 0 Fullscreen 1 Font 18/X11 Map View 76x50 Tactical HUD 1 Map Filters NONE Filters NONE Steam 1 RUN: b8541b89-7518-4734-9e8a-6d85245fb8cc